Cogmind - Beta 13 @@@ ROGUE MODE // 2024.04.14 @ 17:03:08 Player: Tenderz Result: Destroyed by G-47 Trooper with Particle Gun Performance ------------- Evolutions (0) 0 Regions Visited (1) 200 Robots Destroyed (6) 30 Value Destroyed (116) 116 Prototype IDs (2) 40 Alien Tech Used (0) 0 Bonus (0) 0 TOTAL SCORE: 386 Bonus ------- None Cogmind --------- Core Integrity 0/250 Matter 217/300 Energy 123/125 System Corruption 0% Temperature Warm (159) Movement Treading (240) Ox1 Location -10/Materials Parts ------- > --- POWER (1) -------- Light Ion Engine > --- PROPULSION (2) --- Light Treads Compact Wheel > --- UTILITY (2) ------ Large Storage Unit Transport Network Coupler > --- WEAPON (2) ------- (None) > --- INVENTORY (15) --- Wheel Compact Wheel Small Storage Unit High-capacity Matter Pod (200) Weight Redist. System Sensor Array Light Armor Plating Light Armor Plating Tractor Beam Peak State ------------ > --- POWER ------------ Light Ion Engine > --- PROPULSION ------- Wheel Wheel > --- UTILITY ---------- Large Storage Unit Light Armor Plating > --- WEAPON ----------- Small Laser Small Laser > --- INVENTORY -------- Light Ion Engine Light Treads Light Treads Aluminum Leg Aluminum Leg Small Storage Unit High-capacity Matter Pod Light Armor Plating Tractor Beam Medium Laser [Rating: 8] Favorites ----------- Power Light Ion Engine Engine Light Ion Engine Propulsion Wheel Treads Light Treads Wheel Wheel Utility Large Storage Unit Device Sensor Array Storage Large Storage Unit Processor Transport Network Coupler Protection Light Armor Plating Weapon Small Laser Energy Gun Small Laser Energy Cannon Beam Cannon Special Weapon Mining Laser Build | -11 -10 ------- Run | Yrd Mat Slots Evolved . | . . Power . | . . Propulsion . | . . Utility . | . . Weapon . | . . Parts Attached 25 | 5 20 Power 2 | . 2 Engine 2 | . 2 Core . | . . Reactor . | . . Propulsion 8 | 2 6 Treads 3 | . 3 Leg . | . . Wheel 5 | 2 3 Hover . | . . Flight . | . . Utility 6 | 1 5 Device 1 | . 1 Storage 3 | 1 2 Processor 1 | . 1 Hackware . | . . Protection 1 | . 1 Artifact . | . . Weapon 9 | 2 7 Energy Gun 5 | 2 3 Energy Cannon 2 | . 2 Ballistic Gun . | . . Ballistic Cannon . | . . Launcher . | . . Special Weapon 2 | . 2 Impact Weapon . | . . Slashing Weapon . | . . Piercing Weapon . | . . Special Melee Weapon . | . . Unidentified Prototypes . | . . Parts Lost 9 | . 9 Power 1 | . 1 Propulsion 3 | . 3 Utility . | . . Weapon 5 | . 5 Highest Loss Streak 9 | . 9 To Critical Strikes . | . . Average Slot Usage (%) 92 | . 92 Engine 11 | . 11 Treads 8 | . 8 Wheel 18 | . 18 Device 5 | . 5 Storage 14 | . 14 Processor 4 | . 4 Protection 1 | . 1 Energy Gun 17 | . 17 Energy Cannon 5 | . 5 Special Weapon 3 | . 3 Naked Turns . | . . Heaviest Build 31 | 7 31 Greatest Support 40 | 20 40 Greatest Overweight (x) 7 | . 7 Average Overweight (x) . | . . Largest Inventory Capacity 15 | 8 15 Average Capacity 13 | 7 14 Most Carried 15 | 7 15 Average Carried 10 | 3 11 Final Capacity 15 | 8 15 Final Carried 9 | 7 9 Class Distribution -------------------- 100% | Mutant Dominant Class ---------------- Mutant | -10/Materials Resources | -11 -10 ----------- Run | Yrd Mat Matter Collected 645 | 182 463 Remotely . | . . Salvage Created 305 | . 305 Parts 13 | . 13 Haulers Intercepted 1 | . 1 Recyclers Shooed 2 | . 2 Parts Field Recycled . | . . Retrieved Matter . | . . Parts Self-Destructed . | . . Prevented . | . . Kills | -11 -10 ------- Run | Yrd Mat Combat Hostiles Destroyed 3 | . 3 Guns 2 | . 2 Cannons 1 | . 1 Classes Destroyed 3 | . 3 Hauler 1 | . 1 Recycler 2 | . 2 Grunt 3 | . 3 Best Kill Streak 3 | . 3 Combat Bots Only 2 | . 2 Max Kills in Single Turn 1 | . 1 Gunslinging . | . . Exploded . | . . Melee . | . . Uniques/NPCs Destroyed . | . . Combat | -11 -10 -------- Run | Yrd Mat Hostile Shots Fired 90 | . 90 Missed 12 | . 12 Damage Taken 963 | . 963 Core 254 | . 254 Absorbed by Shields . | . . Core Remaining (%) 100 | 100 . Volleys Fired 35 | . 35 Largest 2 | . 2 Hottest 110 | . 110 Shots Fired 53 | . 53 Gun 26 | . 26 Cannon 16 | . 16 Launcher . | . . Special 11 | . 11 Kinetic . | . . Thermal 53 | . 53 Explosive . | . . Electromagnetic . | . . Robot Hit Streak 6 | . 6 Robot Miss Streak 4 | . 4 Penetration Max . | . . Secondary Targets . | . . Shots Hit Robots 27 | . 27 Core Hits 10 | . 10 Critical Kills . | . . Critical Parts Destroyed . | . . Critical Strikes 2 | . 2 Burn 2 | . 2 Melee Attacks . | . . Impact . | . . Slashing . | . . Piercing . | . . Sneak Attacks . | . . Combat Hostiles . | . . Follow-up Attacks . | . . Damage Inflicted 377 | . 377 Guns 204 | . 204 Cannons 171 | . 171 Explosions . | . . Melee . | . . Ramming 2 | . 2 Kinetic . | . . Thermal 375 | . 375 Explosive . | . . Electromagnetic . | . . Impact . | . . Slashing . | . . Piercing . | . . Highest Corruption . | . . Average Corruption . | . . Corruption Purged . | . . Corruption Blocked . | . . Overload Shots . | . . Overflow Damage . | . . Projectiles . | . . Explosions . | . . Melee . | . . Knockbacks . | . . Impact . | . . Kinetic . | . . Secondary . | . . Self-Inflicted Damage . | . . Shots . | . . Rammed 2 | . 2 Targets Rammed 2 | . 2 Kicked . | . . Crushed . | . . Highest Temperature 588 | . 588 Average Temperature 199 | . 199 Received Heat Transfer 573 | . 573 Effects 15 | . 15 Shutdowns 1 | . 1 Interference 1 | . 1 Matter Decay 2 | . 2 Short Circuit 2 | . 2 Damage (minor) 5 | . 5 Damage (major) 4 | . 4 Siege Activations . | . . Robots Corrupted . | . . Combat Hostiles . | . . Parts Fried . | . . Impact Corruptions . | . . Robots Melted . | . . Combat Hostiles . | . . Parts Melted 4 | . 4 Heat Transferred 1075 | . 1075 Parts Sabotaged . | . . Parts Stolen . | . . Parts Stripped . | . . Power Chain Reactions . | . . Alert | -11 -10 ------- Run | Yrd Mat Peak Influence 148 | . 148 Initial . | . . Average 51 | . 59 Maximum Alert Level . | . . Low Security (%) 100 | 100 100 Level 1 . | . . Level 2 . | . . Level 3 . | . . Level 4 . | . . Level 5 . | . . High Security . | . . Max Security . | . . Squads Dispatched 1 | . 1 Investigation 1 | . 1 Extermination . | . . Reinforcement . | . . Assault . | . . Garrison . | . . Intercept . | . . Searches Triggered . | . . Construction Impeded . | . . Haulers Reinforced . | . . Active Scanning Responses . | . . Cargo Convoy Interrupts . | . . Stealth | -11 -10 --------- Run | Yrd Mat Distress Signals 2 | . 2 Communications Jammed . | . . Distress Signals . | . . Times Spotted 10 | . 10 Peak Tracking Total 5 | . 5 Tactical Retreats . | . . Traps | -11 -10 ------- Run | Yrd Mat Traps Triggered . | . . Indirectly . | . . Trap Hack Attempts . | . . Triggered . | . . Disarmed . | . . Reprogrammed . | . . Reused . | . . Traps Extracted . | . . Installed . | . . Triggered . | . . Machines | -11 -10 ---------- Run | Yrd Mat Machines Disabled . | . . Max in Single Turn . | . . Machines Repaired . | . . Machines Dismantled . | . . Machines Sabotaged . | . . Overloaded Fab Kills . | . . Hacking | -11 -10 --------- Run | Yrd Mat Machines Accessed 2 | . 2 Terminals 1 | . 1 Fabricators . | . . Repair Stations . | . . Recycling Units 1 | . 1 Scanalyzers . | . . Garrison Access . | . . Total Hacks 5 | . 5 Successful 3 | . 3 Failed 2 | . 2 Catastrophic . | . . Database Lockouts . | . . Manual 2 | . 2 Terminals 4 | . 4 Fabricators . | . . Repair Stations . | . . Recycling Units 1 | . 1 Scanalyzers . | . . Garrison Access . | . . Terminal Hacks 2 | . 2 Prototype ID Bank 1 | . 1 Branch Access Points 1 | . 1 Fabricator Hacks . | . . Repair Station Hacks . | . . Recycling Unit Hacks 1 | . 1 Retrieve Components 1 | . 1 Scanalyzer . | . . Garrison Access Hacks . | . . Unauthorized Hacks . | . . Terminals . | . . Fabricators . | . . Repair Stations . | . . Recycling Units . | . . Scanalyzers . | . . Garrison Access . | . . Data Cores Recovered . | . . Used . | . . Hacking Detections 1 | . 1 Full Trace Events 1 | . 1 Feedback Events . | . . Feedback Blocked . | . . Robot Schematics Acquired . | . . Robots Built . | . . Authchips . | . . Time . | . . Total Robot Build Rating . | . . Part Schematics Acquired . | . . Parts Built . | . . Authchips . | . . Time . | . . Total Part Build Rating . | . . Parts Repaired . | . . Time . | . . Parts Recycled . | . . Recycled Matter . | . . Retrieved Matter . | . . Retrieved Components 3 | . 3 Parts Scanalyzed . | . . Part Schematics Acquired . | . . Parts Damaged . | . . Bothacking | -11 -10 ------------ Run | Yrd Mat Used RIF Installer . | . . Robots Hacked . | . . Non-combat . | . . Combat . | . . Robot Hacks Applied . | . . Relay Couplers Released . | . . Fabnet Peak Effective % . | . . Robots Rewired . | . . Allies Hacked . | . . Hacks Repelled . | . . Allies | -11 -10 -------- Run | Yrd Mat Total Allies . | . . Largest Group . | . . Highest-Rated Group . | . . Highest-Rated Ally . | . . Total Orders . | . . Ally Attacks . | . . Total Damage . | . . Kills . | . . Allies Corrupted . | . . Allies Melted . | . . Intel | -11 -10 ------- Run | Yrd Mat Robot Analysis Total . | . . Derelict Logs Recovered . | . . Drone Launches . | . . Drone Recoveries . | . . Exploration | -11 -10 ------------- Run | Yrd Mat Turns Passed 401 | 53 348 Spaces Moved 213 | 49 164 Core 4 | 3 1 Treads 25 | . 25 Legs . | . . Wheels 184 | 46 138 Hover . | . . Flight . | . . Fastest Speed 50 | 50 80 Average Speed 99 | 78 105 Slowest Speed 400 | 80 400 Overloaded Moves . | . . Propulsion Burnouts . | . . Robots Hopped . | . . Cave-ins Triggered . | . . Exploration Rate (%) 13 | 3 23 Regions Visited 1 Branch Regions . Pre-discovered Areas . | . . Known Exits Taken . | . . Unknown Exits Taken 1 | 1 . Scrap Searched . | . . Spaces Dug 10 | . 10 Terrain Destroyed 11 | . 11 Melee . | . . Projectile 11 | . 11 AOE . | . . Terrain Rammed . | . . Walls Destroyed . | . . Machines Disabled . | . . Actions | -11 -10 --------- Run | Yrd Mat Total 321 | 60 261 Wait 20 | . 20 Move 212 | 48 164 Hop . | . . Pick Up 19 | 7 12 Fast Attach 9 | 5 4 Attach 8 | . 8 Detach 3 | . 3 Swap 8 | . 8 Drop 5 | . 5 Fire 35 | . 35 Melee . | . . Ram . | . . Kick . | . . Crush 2 | . 2 Escape Stasis . | . . Rewire . | . . Trap . | . . Miscellaneous . | . . Route ------- -11/Scrapyard -10/Materials (discovered 1 exit: Min) History --------- Turn | Location | Event 36 | -11/Scrapyard | Discovered new exit (range 13) 54 | -11/Scrapyard | Entered Materials 165 | -10/Materials | Identified exit to Mines 302 | -10/Materials | Build established: Mutant 364 | -10/Materials | Core integrity fell below 50% 391 | -10/Materials | Core integrity fell below 20% 402 | -10/Materials | Destroyed by G-47 Trooper with Particle Gun Last Messages --------------- 00368_ K-01 Serf collects debris. 00368_ Acquired Sml. Laser. 00370_ R-06 Scavenger collects Aluminum Leg. 00371_ K-01 Serf collects debris. 00371_ G-34 Mercenary destroyed. 00372_ Acquired 35 matter. 00372_ U-05 Engineer destroyed. 00374_ Acquired 40 matter. 00380_ Destroyed Tractor Beam. 00387_ Sml. Laser destroyed. 00389_ Wheel destroyed. 00391_ R-06 Scavenger collects Ion Engine. 00392_ Mining Laser destroyed. 00393_ K-01 Serf collects debris. 00397_ Slammed into G-34 Mercenary. 00397_ R-06 Scavenger collects Heat Sink. 00398_ R-06 Scavenger destroyed. 00399_ K-01 Serf collects debris. 00399_ U-05 Engineer builds a Wall. 00399_ Slammed into G-34 Mercenary. Map ----- +----------------------------------------------------+ | ??????????????????????# #????????????????? | | ??????????????????????# "" ** #????????????????? | | ??????????????????????# "Y ! ** #????????????????? | | ??????????????????????# "" ** #????????????????? | | ??????????????????????# #????????????????? | | ??????????????????????######+################# | | ????????????????????????# | | ????????????????????????# | | ??????????????????####### | | ??????????????????# # #######+########## | | ??????????????????# # # # T #???????# | | ??????????????????#""" # # # ###?????# | | ??????????????????#""" # + # # #?????# | | ??????????????????#""" # # """ # ###?????# | | ??????????????????# + # """ # !#???????# | | ??????????????????#""" # # """ # #???????# | | ??????????????????#""" ## # #! #???????# | | ??????????????????#""" ## ################### | | ??????????????????# ## + # | | ??????????????????# ## ############# # | | ??????????????????# ## #?????????### + | | ??????????????????######## #???????????# # | | ????????????????????????## #???????????# # | | ????????????????????????##u#???????????# # | | ????????????????????????##/########????#+###### | | ????????????????????????#@g%!! #????# #????# | | ????????????????????????#==g% %#???#" #????# | | ????????????????????????#%%! ! ####"# #????#### | | ????????????????????????# [!k %[* + #??????? | | ????????????????????????# % ! ##"""###??????## | | ????????????????????????# ### ##?????????? | | ????????????????????????# #?###??????????? | | ????????????????????????# #??????????????? | | ????????????????????????#####+#####??????????????? | | ???????????????????????????? ??????????????????? | | ???????????????????????????? ?????????????????? | | ??????????????????????????? T ?????????????????? | | ??????????????????????????? #????????????????? | | ??????????????????????????# #????????????????? | | ??????????????????????????## ##????????????????? | | ???????????????????????????# ? ??????????????????? | | ???????????????????????????? ? ??????????????????? | | ?????????????????????????????????????????????????? | | ?????????????????????????????????????????????????? | | ?????????????????????????????????????????????????? | | ?????????????????????????????????????????????????? | | ?????????????????????????????????????????????????? | | ?????????????????????????????????????????????????? | | ?????????????????????????????????????????????????? | | ?????????????????????????????????????????????????? | +----------------------------------------------------+ Best States ------------- Heat Dissipation 25 Energy Generation 10 Energy Capacity 125 Matter Stores 300 Matter Capacity 300 Sight Range 16 Robot Scan Range 14 Terrain Scan Density 10 Armor Coverage 150 Evasion (%) 44 Recoil Reduction 2 Item Schematics ----------------- None Robot Schematics ------------------ None Fabricated ------------ Nothing Alien Tech Used ----------------- None Achievements -------------- None Challenges ------------ None Game ------ Seed CoilLaserBooster Manual? 0 Play Time 00:13:42 Cumulative 14.2 hours Start 2024.04.14 @ 16:42:22 End 2024.04.14 @ 17:03:08 Sessions 1 Manual Loads 0 Difficulty Rogue Special Mode None Game No. 17 Rogue 17 Adventurer 0 Explorer 0 Win Type - Total 0 Types 0/0/0/0/0/0/0/0/0 Lore% 5 Gallery% 21 Achievement% 17 Wizard Run 0 Options --------- Layout 2 ASCII 0 Keyboard 0 Movement Numpad Keybinds 0 Fullscreen 0 Font 20/Smallcaps Map View 59x48 Zoom Use 7% Tactical HUD 1 Map Filters NONE Filters NONE Steam 1 RUN: 4e727c91-2b29-4c56-874f-7ca221700c90